bitfinex-derivatives/quotes_ETHF0:USTF0_20250905
["timestamp","ask_amount","ask_price","bid_price","bid_amount"]
[1757081905446,1.5982,4368.5,4366.8,3.2078]
[1757081905643,1.5982,4367.8,4366.7,40.8]
[1757081905951,1.5982,4367.8,4366.9,3.03812042]
[1757081906154,1.5982,4367.9,4366.9,0.41212]
[1757081906458,1.5982,4367.9,4367.5,3.2078]
[1757081906652,1.5982,4367.9,4367.1,3.2078]
[1757081906856,1.5982,4367.2,4366.4,0.314]
[1757081907048,1.5982,4367.8,4366.5,3.5218]
[1757081907246,1.5982,4367.8,4366.5,2.92170477]
[1757081907452,1.5982,4366.5,4363.5,3.2078]
[1757081907653,3.2078,4364.3,4363.4,1.3826]
[1757081907850,3.2078,4363.7,4363.1,0.321]
[1757081908054,3.2078,4363.7,4362.5,1.518]
[1757081908252,3.2078,4363.7,4362.6,0.321]
[1757081908455,3.2078,4363.2,4362.0,40.8]
[1757081908659,3.2078,4362.6,4362.3,0.321]
[1757081908955,1.5982,4364.6,4362.5,3.2078]
[1757081909151,3.2078,4363.7,4362.5,3.2078]
[1757081909356,3.2078,4363.7,4362.6,3.65596276]
[1757081909552,3.2078,4363.7,4362.6,2.92244276]
[1757081909753,1.5982,4362.6,4361.0,3.21169833]
[1757081909955,1.5982,4361.1,4361.0,0.00389833]
[1757081910160,4.806,4361.1,4361.0,0.00389833]
[1757081910453,1.5982,4361.8,4361.0,0.00389833]
[1757081910655,3.2078,4361.5,4361.1,0.321]
[1757081910858,3.2078,4361.7,4361.0,2.94017744]
[1757081911054,3.2078,4361.2,4361.1,1.518]
[1757081911247,3.2078,4361.2,4361.1,2.93627911]
[1757081911560,1.5982,4361.1,4361.0,0.00389833]
[1757081911950,3.2078,4361.2,4361.0,0.00389833]
[1757081912253,4.806,4361.1,4361.0,0.00389833]
[1757081912855,3.2078,4361.1,4361.0,0.00389833]
[1757081913355,4.806,4361.1,4361.0,0.00389833]
[1757081913955,3.2078,4361.1,4361.0,0.00389833]
[1757081914153,4.806,4361.1,4361.0,0.00389833]
[1757081914360,3.2078,4361.1,4361.0,0.00389833]
[1757081914551,3.2078,4361.4,4361.0,0.00389833]
[1757081914751,3.2078,4361.6,4361.0,0.00389833]
[1757081914961,1.5982,4361.9,4361.1,0.321]
[1757081915255,3.2078,4361.8,4361.0,0.00389833]
[1757081915449,1.5982,4361.1,4361.0,0.00389833]
[1757081916251,1.5982,4361.1,4360.3,0.32]
[1757081916461,3.2078,4361.2,4360.4,0.32]
[1757081916648,3.2078,4361.2,4361.0,0.41267]
[1757081916849,3.2078,4361.5,4361.4,0.41264]
[1757081917050,0.41252,4362.7,4361.3,1.03162]
[1757081917355,1.5982,4362.2,4361.4,43.80587771]
[1757081917654,1.5982,4362.2,4361.5,0.319]
[1757081917655,0.41259,4361.9,4361.5,0.319]
[1757081917861,3.2078,4361.7,4361.5,0.319]
[1757081918156,1.0314,4362.3,4361.2,0.319]
[1757081918459,3.2078,4362.5,4361.6,3.01602284]
[1757081918658,1.5982,4362.9,4361.5,3.02664599]
[1757081918853,3.2078,4362.5,4361.3,43.82664599]
[1757081919049,1.03128,4362.8,4361.5,3.02664599]
[1757081919257,0.41256,4362.2,4361.6,0.73161]
[1757081919558,0.41256,4362.2,4361.3,40.8]
[1757081919559,4.806,4362.0,4361.7,0.319]
[1757081919760,3.62039,4362.0,4361.4,0.319]
[1757081919956,3.2078,4361.8,4361.4,0.319]
[1757081920254,3.2078,4361.8,4361.7,0.41261]
[1757081920459,4.806,4363.0,4361.7,1.518]
[1757081920756,3.2078,4362.5,4361.8,0.3112702]
[1757081920962,0.41257,4362.2,4361.9,0.319]
[1757081921153,1.03137,4362.4,4362.0,0.319]
[1757081921351,1.5982,4362.3,4361.1,1.518]
[1757081921657,3.2078,4361.5,4361.2,0.63078227]
[1757081921857,0.41264,4361.4,4361.3,41.43078227]
[1757081922160,4.23938,4361.5,4359.8,3.2078]
[1757081922353,0.41273,4360.4,4359.9,0.31224398]
[1757081922659,3.2078,4360.9,4360.5,0.41272]
[1757081922851,3.2078,4360.9,4360.6,0.63024398]
[1757081923157,0.4126,4361.8,4360.8,1.93069]
[1757081923461,3.2078,4362.1,4361.7,0.4126]
[1757081923661,3.2078,4363.0,4361.8,2.14824398]
[1757081923956,5.21858,4362.0,4361.9,0.31224398]
[1757081924360,0.41258,4362.0,4361.9,0.31224398]
[1757081924657,2.01078,4362.0,4361.9,0.31224398]
[1757081924858,1.5982,4362.0,4361.9,0.31224398]
[1757081925356,1.5982,4361.2,4360.5,0.318]
[1757081925659,0.41272,4360.5,4360.4,0.317]
[1757081925960,0.41273,4360.4,4360.3,40.8]
[1757081926157,3.2078,4360.7,4360.3,42.635]
[1757081926358,1.03173,4360.9,4360.3,44.03272923]
[1757081926562,0.41269,4360.8,4360.4,0.317]
[1757081926759,0.41267,4361.0,4360.5,1.518]
[1757081926959,3.2078,4361.0,4360.5,4.52177915]
[1757081927159,1.03152,4361.7,4360.8,1.518]
[1757081927366,3.6204,4361.8,4360.9,0.317]
[1757081927658,3.2078,4361.8,4361.3,1.518]
[1757081927860,0.4126,4361.8,4361.5,1.518]
[1757081928050,0.68806681,4362.0,4361.6,1.97951]
[1757081928257,1.15798333,4362.5,4361.6,2.97856576]
[1757081928457,1.15798333,4362.5,4361.7,0.317]
[1757081928662,1.5311,4362.4,4362.1,3.2078]
[1757081928862,0.41258,4362.0,4361.8,4.51254836]
[1757081929163,1.5311,4362.1,4361.9,0.317]
[1757081929368,1.03164,4361.2,4360.2,3.2078]
[1757081929665,3.2078,4361.1,4360.4,2.97630615]
[1757081929863,0.41268,4361.0,4360.5,0.317]
[1757081930065,1.5311,4361.6,4360.6,0.317]
[1757081930271,1.5311,4360.7,4360.6,2.32866615]
[1757081930461,3.20661096,4360.7,4358.6,3.2078]
[1757081930768,3.2078,4358.7,4357.8,0.5861]
[1757081930969,3.2078,4359.7,4357.9,1.5669]
[1757081931170,5.0559,4360.2,4358.3,3.2078]
[1757081931367,3.2078,4360.4,4358.9,3.2078]
[1757081931557,3.2078,4360.3,4359.0,0.319]
[1757081931866,3.2078,4361.3,4360.2,1.5669]
[1757081932064,1.5311,4361.2,4359.4,4.7747]
[1757081932263,3.2078,4360.1,4359.4,3.2078]
[1757081932457,3.2078,4360.2,4359.7,3.00290634]
[1757081932662,3.2078,4360.2,4358.3,3.5268]
[1757081932663,1.5311,4360.1,4358.3,3.5268]
[1757081932857,3.2078,4358.9,4358.3,3.5268]
[1757081933074,3.2078,4358.9,4358.3,3.2078]
[1757081933364,3.2078,4358.9,4357.1,1.03261]
[1757081933365,3.2078,4358.4,4357.7,1.5669]
[1757081933566,3.2078,4358.4,4357.8,0.319]
[1757081933759,1.5311,4358.3,4357.9,2.97892181]
[1757081933962,3.2078,4358.4,4358.0,1.5669]
[1757081934160,3.2078,4358.3,4358.0,1.5669]
[1757081934471,0.319,4358.2,4355.4,3.2078]
[1757081934764,3.2078,4356.9,4355.5,0.319]
[1757081934960,3.2078,4356.3,4356.0,0.03994607]
[1757081935371,3.2078,4356.3,4355.3,3.2078]
[1757081935670,3.2078,4355.5,4353.5,1.5669]
[1757081935864,3.2078,4353.6,4353.5,1.98029]
[1757081936068,3.2078,4354.1,4353.5,1.8869]
[1757081936370,3.2078,4354.2,4354.0,1.5669]
[1757081936562,3.2078,4354.2,4353.8,0.5861]
[1757081936764,3.2078,4354.2,4353.4,0.00603337]
[1757081937072,3.2078,4354.2,4353.2,1.5669]
[1757081937073,3.2078,4353.5,4351.0,0.00390729]
[1757081937265,3.2078,4351.1,4350.0,0.1]
[1757081937463,3.2078,4350.1,4350.0,0.1]
[1757081937665,7.5278,4350.1,4348.2,6.32696649]
[1757081937865,0.41388,4348.4,4348.2,6.32696649]
[1757081938070,3.2078,4348.3,4348.2,6.32696649]
[1757081938372,1.03439,4349.7,4347.5,0.73260695]
[1757081938373,0.32,4349.3,4348.3,4.30120516]
[1757081938573,3.2078,4349.8,4349.2,3.79981761]
[1757081938773,3.2078,4349.3,4348.7,0.32]
[1757081939071,4.7389,4350.8,4349.3,2.95055567]
[1757081939272,3.2078,4349.4,4349.3,0.41378]
[1757081939472,3.2078,4350.5,4349.3,1.5669]
[1757081939667,1.0338,4352.2,4349.3,1.5669]
[1757081939668,1.5311,4351.1,4349.5,1.5669]
[1757081939978,3.2078,4350.5,4349.6,43.85072547]
[1757081940172,3.2078,4349.7,4348.6,3.2078]
[1757081940476,3.2078,4348.9,4348.7,3.05072547]
[1757081940674,0.345,4349.9,4348.7,4.61762547]
[1757081940872,3.2078,4349.4,4348.8,0.9311]
[1757081941076,4.7389,4348.9,4348.8,3.04608075]
[1757081941265,3.2078,4349.5,4347.8,0.345]
[1757081941472,0.345,4349.5,4348.3,1.5669]
[1757081941771,3.2078,4350.2,4348.7,1.5669]
[1757081941969,3.2078,4350.2,4348.8,0.345]
[1757081942174,3.2078,4349.9,4348.9,1.5669]
[1757081942671,3.2078,4350.6,4349.8,3.98120516]
[1757081942868,3.2078,4350.6,4349.0,4.52684886]
[1757081943070,3.2078,4349.7,4348.7,3.2078]
[1757081943368,3.2078,4349.6,4348.9,2.95994886]
[1757081943574,3.2078,4349.6,4348.2,1.5669]
[1757081943575,1.5311,4348.9,4347.9,3.2078]
[1757081943778,1.5311,4348.0,4347.1,10.46348034]
[1757081944078,1.5311,4349.4,4347.7,3.2078]
[1757081944278,3.2078,4349.2,4347.7,3.2078]
[1757081944475,0.345,4349.3,4349.1,2.26871761]
[1757081944671,3.2078,4349.2,4348.1,1.5669]
[1757081944873,3.2078,4348.6,4347.8,1.5669]
[1757081945072,3.2078,4348.6,4347.5,3.94040695]
[1757081945267,3.2078,4348.6,4347.5,0.73260695]
[1757081945474,0.68397406,4349.4,4348.6,1.5669]
[1757081945674,0.68397406,4349.4,4348.4,3.2078]
[1757081945874,0.68397406,4349.4,4348.7,3.02297086]
[1757081946071,3.2078,4349.0,4347.5,0.73260695]
[1757081946476,3.2078,4348.2,4347.5,0.73260695]
[1757081946674,3.62175,4347.6,4347.5,0.73260695]
[1757081946871,7.96575,4347.6,4347.5,0.23183695]
[1757081947075,10.35063,4346.9,4344.6,1.5669]
[1757081947275,3.2078,4346.0,4344.6,1.5669]
[1757081947476,3.2078,4346.6,4346.5,0.18138755]
[1757081947774,3.2078,4346.6,4346.4,0.5861]
[1757081947975,3.2078,4347.5,4345.7,1.5669]
[1757081948173,3.2078,4347.0,4345.2,0.5861]
[1757081948368,3.2078,4345.9,4345.2,0.5861]
[1757081948567,3.2078,4345.4,4344.4,3.2078]
[1757081948771,3.2078,4345.4,4344.5,1.5669]
[1757081948975,3.2078,4346.6,4345.4,1.5669]
[1757081949178,1.6093,4346.7,4345.5,3.2078]
[1757081949379,3.2078,4348.5,4347.0,1.035]
[1757081949580,0.1149,4348.9,4347.6,3.2078]
[1757081949877,3.2078,4347.8,4347.1,6.26307769]
[1757081950175,1.5311,4347.1,4344.9,3.2078]
[1757081950370,3.2078,4345.5,4344.9,3.2078]
[1757081950572,0.0108,4345.5,4345.4,1.5669]
[1757081950768,2.1262,4347.2,4345.4,3.5528]
[1757081950973,1.5311,4346.2,4345.4,3.2078]
[1757081951181,0.344,4347.4,4345.9,3.2078]
[1757081951473,0.345,4347.7,4346.0,43.80665994]
[1757081951680,3.2078,4346.3,4346.0,3.00665994]
[1757081951870,0.5951,4348.5,4344.9,1.5669]
[1757081951871,3.2078,4346.1,4345.1,3.2078]
[1757081952067,1.5311,4346.6,4344.6,3.2078]
[1757081952068,3.2078,4345.5,4344.6,3.2078]
[1757081952268,3.2078,4345.5,4344.7,1.5669]
[1757081952476,3.2078,4346.8,4345.4,1.5669]
[1757081952678,3.2078,4346.5,4345.8,3.2078]
[1757081952875,3.2078,4346.5,4345.9,2.498]
[1757081953176,3.2078,4346.2,4345.3,3.05306728]
[1757081953380,0.344,4346.1,4344.4,3.2078]
[1757081953582,3.2078,4345.3,4344.4,3.2078]
[1757081953776,31.732,4347.2,4345.0,1.5669]
[1757081953777,3.2078,4346.3,4345.0,1.5669]
[1757081953981,1.15749616,4347.7,4346.5,1.5669]
[1757081954281,0.57729679,4349.2,4348.3,1.3689]
[1757081954474,1.03399,4351.3,4349.1,1.0345]
[1757081954672,1.5311,4351.5,4350.2,3.2078]
[1757081954872,11.96623,4352.4,4350.2,3.2078]
[1757081954873,3.2078,4352.7,4350.8,1.03408]
[1757081955078,3.2078,4353.5,4351.1,3.2078]
[1757081955275,0.1146,4353.4,4352.3,3.2078]
[1757081955481,0.1146,4353.4,4353.3,3.2078]
[1757081955685,0.5951,4355.0,4353.3,3.2078]
[1757081955873,3.2078,4355.9,4354.4,3.2078]
[1757081956173,3.2078,4355.9,4354.2,0.41331]
[1757081956174,1.5311,4356.3,4354.7,3.2078]
[1757081956370,3.2078,4357.7,4356.1,3.2078]
[1757081956575,0.17,4358.9,4357.3,3.62081]
[1757081956576,0.41291,4358.5,4357.3,3.62081]
[1757081956873,0.17,4358.9,4357.9,3.62076]
[1757081957070,0.17,4358.9,4358.0,0.347]
[1757081957375,0.41288,4358.8,4358.6,3.2078]
[1757081957576,0.17,4358.9,4358.6,3.5548]
[1757081957778,0.17,4358.9,4357.5,3.2078]
[1757081957779,1.5311,4358.8,4357.5,3.2078]
[1757081958078,1.5311,4358.2,4356.7,0.347]
[1757081958273,10.32427,4357.9,4356.8,3.2078]
[1757081958478,0.41303,4357.3,4357.0,3.2078]
[1757081958776,11.35848,4357.2,4355.7,3.02103122]
[1757081959075,0.41312,4356.3,4356.1,3.2078]
[1757081959279,4.6792,4357.5,4356.2,0.347]
[1757081959482,0.413,4357.6,4356.9,3.2078]
[1757081959683,3.2078,4358.0,4357.4,3.2078]
[1757081959882,0.17,4358.9,4357.9,3.2078]
[1757081960083,0.17,4358.9,4357.5,41.147]
[1757081960084,1.4714,4358.8,4357.5,43.77455295]
[1757081960384,1.4714,4358.8,4357.5,0.347]
[1757081960679,1.4714,4357.9,4354.5,44.0078]
[1757081960976,0.6035,4358.4,4355.5,3.2078]
[1757081960977,1.4714,4356.4,4355.5,3.2078]
[1757081961383,1.4714,4356.4,4355.7,3.2078]
[1757081961579,3.2078,4357.1,4356.3,3.2078]
[1757081961774,0.347,4357.2,4356.3,3.2078]
[1757081962075,1.4714,4356.6,4354.7,0.347]
[1757081962376,3.2078,4357.5,4356.2,1.4448]
[1757081962581,3.2078,4357.5,4356.8,4.6526]
[1757081962780,3.2078,4357.5,4356.3,0.347]
[1757081962781,4.0,4357.5,4356.7,3.2078]
[1757081962982,3.2078,4357.0,4355.6,3.2078]
[1757081963280,3.2078,4357.0,4352.4,1.03371]
[1757081963281,3.2078,4355.7,4354.0,1.4448]
[1757081963485,3.2078,4354.6,4354.0,4.6526]
[1757081963683,3.2078,4355.5,4354.5,3.2078]
[1757081963878,3.2078,4355.5,4354.7,1.4448]
[1757081964186,3.2078,4356.0,4355.1,1.4448]
[1757081964481,3.2078,4356.0,4355.2,0.6053]
[1757081964673,3.2078,4356.0,4355.3,0.347]
[1757081964875,3.2078,4358.0,4355.7,1.4448]
[1757081965082,3.2078,4358.0,4357.1,3.2078]
[1757081965277,3.2078,4358.0,4357.1,1.4448]
[1757081965586,4.6792,4357.4,4356.4,3.2078]
[1757081965787,3.2078,4357.4,4356.4,3.2078]
[1757081965974,3.2078,4357.4,4356.5,2.97985216]
[1757081966288,3.2078,4357.3,4355.5,1.4448]
[1757081966476,3.2078,4356.6,4354.8,4.6526]
[1757081966781,3.2078,4354.6,4351.1,4.6526]
[1757081966983,4.22955,4357.3,4348.8,31.702]
[1757081966984,1.03401,4351.3,4350.6,2.73121]
[1757081967178,10.33935,4351.6,4351.1,5.95970432]
[1757081967381,3.5558,4351.7,4350.2,1.4448]
[1757081967681,3.2078,4351.7,4351.4,5.35704432]
[1757081967889,3.2078,4352.2,4351.6,6.80184432]
[1757081968090,3.2078,4352.2,4351.6,1.4448]
[1757081968281,3.2078,4353.7,4352.1,4.6526]
[1757081968481,0.348,4354.0,4353.6,3.2078]
[1757081968679,3.2078,4353.7,4352.7,4.6526]
[1757081968980,3.2078,4354.4,4353.6,3.2078]
[1757081969485,3.2078,4354.4,4353.4,3.2078]
[1757081969682,3.2078,4354.4,4352.7,1.4448]
[1757081969683,0.348,4354.3,4352.7,1.4448]
[1757081969886,0.348,4354.4,4353.9,3.2078]
[1757081970082,3.2078,4354.5,4353.9,3.2078]
[1757081970287,3.2078,4355.0,4353.9,3.2078]
[1757081970485,3.2078,4355.8,4354.9,3.2078]
[1757081970787,198.156,4360.0,4355.5,3.2078]
[1757081970788,3.2078,4356.3,4355.5,3.2078]
[1757081970978,3.2078,4355.8,4353.1,1.4448]
[1757081971179,3.2078,4353.2,4352.0,0.6053]
[1757081971378,3.2078,4352.5,4351.5,3.2078]
[1757081971687,1.51571939,4357.1,4350.4,0.6053]
[1757081971688,3.2078,4351.6,4350.4,0.6053]
[1757081971888,0.348,4351.5,4350.4,3.8131]
[1757081972083,0.348,4351.5,4350.4,0.6053]
[1757081972288,3.2078,4350.5,4349.6,0.41375]
[1757081972487,3.2078,4351.2,4349.9,3.2078]
[1757081972784,3.2078,4351.7,4350.9,3.2078]
[1757081973083,3.2078,4352.2,4351.5,3.2078]
[1757081973284,3.2078,4352.2,4351.2,3.2078]
[1757081973588,3.2078,4352.2,4351.3,1.4448]
[1757081974082,3.2078,4352.2,4351.3,4.48985156]
[1757081974282,0.348,4352.1,4351.3,1.4448]
[1757081974484,3.5548,4352.2,4351.4,3.04505156]
[1757081974680,3.2078,4352.7,4352.0,0.6053]
[1757081974883,3.2078,4354.0,4352.3,1.4448]
[1757081975086,3.2078,4354.7,4352.4,3.2078]
[1757081975384,1.13575153,4353.8,4353.5,1.4448]
[1757081975584,1.13575153,4353.8,4353.7,4.6526]
[1757081975782,1.51571939,4354.4,4353.7,4.6526]
[1757081976085,1.51571939,4354.4,4353.6,4.42532786]
[1757081976086,1.51571939,4354.4,4354.3,4.6526]
[1757081976292,0.347,4355.7,4354.3,4.6526]
[1757081976488,3.2078,4356.2,4355.3,1.03305]
[1757081976789,0.346,4357.5,4356.8,0.41307]
[1757081976981,0.346,4357.6,4356.6,0.41309]
[1757081977182,0.346,4357.5,4356.5,1.03276]
[1757081977492,3.5538,4357.8,4356.7,1.03271]
[1757081977786,32.056,4358.8,4357.5,3.2078]
[1757081977985,1.4714,4358.4,4357.4,3.2078]
[1757081978184,1.4714,4358.2,4356.8,0.346]
[1757081978484,3.2078,4358.5,4356.8,0.346]
[1757081978485,3.2078,4358.5,4357.8,3.2078]
[1757081978686,3.2078,4359.0,4358.7,0.41289]
[1757081978985,4.6792,4359.9,4358.7,0.41289]
[1757081979283,4.17,4358.9,4357.5,1.4448]
[1757081979493,3.2078,4358.8,4357.8,3.2078]
[1757081979690,3.5528,4358.8,4357.8,3.62078]
[1757081979886,3.5528,4358.8,4357.1,2.9172846]
[1757081979887,1.4714,4358.7,4357.1,2.9172846]
[1757081980094,3.2078,4358.1,4356.9,40.2]
[1757081980288,1.8164,4358.0,4356.9,43.4078]
[1757081980486,3.2078,4358.1,4357.0,2.9172846]
[1757081980690,3.2078,4358.1,4357.3,3.2078]
[1757081980886,3.2078,4358.1,4356.9,40.2]
[1757081980887,0.17,4358.9,4357.8,3.2078]
[1757081981083,1.89464924,4360.4,4358.8,1.4448]
[1757081981290,1.89464924,4360.4,4359.2,3.2078]
[1757081981291,2.23964924,4360.4,4359.2,3.2078]
[1757081981592,3.2078,4359.9,4359.0,3.2078]
[1757081981783,1.4714,4359.7,4358.2,1.4448]
[1757081981982,1.03198,4359.8,4354.8,1.4448]
[1757081981983,3.2078,4358.0,4354.8,1.4448]
[1757081982189,3.2078,4356.2,4355.0,3.2078]
[1757081982493,3.2078,4356.2,4355.3,4.47546209]
[1757081982690,3.2078,4356.2,4355.3,4.6526]
[1757081982886,3.2078,4356.2,4356.1,1.4448]
[1757081983089,3.2078,4356.2,4356.0,0.6053]
[1757081983287,3.2078,4356.2,4356.1,1.4448]
[1757081983490,3.2078,4356.9,4356.0,0.6053]
[1757081983690,3.2078,4356.1,4355.2,2.0501]
[1757081984089,3.2078,4355.3,4355.2,2.0501]
[1757081984291,3.2078,4355.8,4355.2,2.0501]
[1757081984489,3.2078,4356.3,4355.2,3.91272746]
[1757081984697,3.2078,4357.0,4356.1,1.4448]
[1757081984988,3.2078,4358.6,4356.7,4.6526]
[1757081985189,3.2078,4358.6,4357.2,1.4448]
[1757081985390,3.2078,4359.2,4357.8,3.2078]
[1757081985599,3.2078,4359.2,4357.4,1.4448]
[1757081985791,3.2078,4358.4,4356.6,1.4448]
[1757081986094,3.2078,4357.1,4353.6,0.6053]
[1757081986301,3.2078,4356.1,4354.2,0.41332]
[1757081986593,3.2078,4354.9,4354.0,1.4448]
[1757081986794,3.2078,4354.4,4353.6,2.0501]
[1757081986994,3.2078,4354.5,4352.9,3.2078]
[1757081987190,3.2078,4353.7,4352.8,0.17459825]
[1757081987391,3.2078,4354.3,4353.7,0.41337]
[1757081987592,3.2078,4354.3,4353.6,1.4448]
[1757081987800,3.2078,4353.7,4353.6,1.4448]
[1757081988000,3.2078,4353.7,4353.0,0.6053]
[1757081988001,3.2078,4353.7,4353.2,2.96701297]
[1757081988200,3.2078,4353.7,4353.0,0.6053]
[1757081988390,3.2078,4353.2,4353.0,0.6053]
[1757081988598,3.2078,4353.2,4353.1,1.4834]
[1757081988789,3.2078,4354.5,4353.2,1.4834]
[1757081988995,3.2078,4353.9,4353.2,1.4834]
[1757081989202,3.2078,4353.4,4353.0,0.6053]
[1757081989502,0.41342,4353.2,4353.0,0.6053]
[1757081989696,3.2078,4354.0,4352.4,1.4834]
[1757081989897,3.2078,4352.6,4352.4,1.4834]
[1757081990196,3.2078,4352.6,4352.4,0.41349]
[1757081990401,3.2078,4353.1,4352.7,0.41346]
[1757081990598,3.2078,4353.1,4352.9,0.41344]
[1757081990902,0.41341,4353.3,4353.0,1.4834]
[1757081991094,3.2078,4353.1,4352.2,0.346]
[1757081991300,3.2078,4352.6,4351.3,1.4834]
[1757081991601,3.2078,4351.9,4351.2,0.5905]
[1757081991793,0.41357,4351.6,4350.8,1.89704]
[1757081992001,0.41355,4351.8,4350.8,1.4834]
[1757081992297,0.345,4351.8,4351.5,0.41357]
[1757081992504,3.2078,4351.9,4351.3,0.08863575]
[1757081992700,3.2078,4351.9,4351.8,1.4834]
[1757081993298,3.2078,4352.4,4351.9,0.41354]
[1757081993494,3.2078,4352.4,4352.3,1.4834]
[1757081993802,0.64129799,4352.5,4352.4,1.89689]
[1757081993994,0.64129799,4352.5,4352.1,0.08863575]
[1757081994304,0.64129799,4352.5,4352.3,1.8969]
[1757081994505,0.64129799,4352.5,4352.4,1.57203575]
[1757081994706,0.64129799,4352.5,4352.4,4.49957352]
[1757081994900,3.2078,4353.0,4352.4,4.49957352]
[1757081994901,3.2078,4353.0,4352.4,8.49957352]
[1757081995203,3.2078,4353.7,4353.0,1.03358]
[1757081995399,3.2078,4354.3,4354.1,0.41333]
[1757081995598,3.2078,4354.3,4354.2,1.4834]
[1757081995996,31.702,4356.2,4353.9,0.41334]
[1757081995997,0.343,4354.6,4353.9,0.41334]
[1757081996198,0.343,4354.6,4353.3,1.57203575]
[1757081996397,3.2078,4354.3,4353.9,0.41335]
[1757081996597,0.343,4354.6,4353.9,0.41335]
[1757081996598,4.7458955,4354.5,4353.9,0.08863575]
[1757081996800,5.0878955,4354.5,4353.9,0.08863575]
[1757081996994,4.7458955,4354.5,4353.9,0.08863575]
[1757081997502,1.5380955,4354.5,4354.4,0.4133]
[1757081998006,3.2078,4355.1,4354.2,0.08863575]
[1757081998007,3.5498,4355.1,4354.7,0.41327]
[1757081998194,1.5247,4355.0,4354.2,0.08863575]
[1757081998401,4.7325,4354.3,4353.2,0.41341]
[1757081998596,4.7325,4353.8,4353.3,0.4134]
[1757081998908,0.341,4353.7,4353.5,0.41338]
[1757081999205,3.2078,4353.8,4353.1,2.93528435]
[1757081999400,3.2078,4353.8,4353.0,1.03358]
[1757081999603,3.2078,4353.8,4353.5,0.41338]
[1757081999902,3.2078,4353.8,4353.1,1.03356]
[1757082000097,3.2078,4353.8,4353.2,1.03354]
[1757082000302,3.2078,4354.9,4353.3,1.4834]
[1757082000503,1.5380955,4355.9,4354.8,2.0739]
[1757082000802,3.2078,4357.7,4356.5,1.03275]
[1757082001003,0.34,4357.7,4355.2,31.704]
[1757082001200,1.5247,4357.6,4356.6,2.97830574]
[1757082001397,1.5247,4357.6,4356.5,2.97830574]
[1757082001598,3.2078,4358.0,4356.5,0.41309]
[1757082001801,1.5247,4357.9,4356.9,3.2078]
[1757082002005,1.5247,4357.9,4356.9,3.62086]
[1757082002200,0.5544,4358.2,4357.7,3.2078]
[1757082002402,2.0791,4358.2,4358.0,0.41296]
[1757082002601,2.0791,4358.2,4357.9,3.2078]
[1757082002602,0.5544,4358.2,4357.9,3.2078]
[1757082002804,0.5544,4358.2,4357.4,0.34]
[1757082003107,0.17,4358.9,4358.7,0.41289]
[1757082003304,5.10244924,4359.1,4358.8,3.5468]
[1757082003305,1.89464924,4359.1,4358.8,3.5468]
[1757082003508,3.3486918,4360.4,4359.7,1.032]
[1757082003806,1.5247,4363.7,4362.7,0.41251]
[1757082004000,31.699,4364.7,4362.8,3.2078]
[1757082004204,1.5247,4362.3,4362.2,0.34]
[1757082004410,1.5247,4363.1,4361.9,2.973813]
[1757082004600,1.5247,4363.1,4362.4,3.2078]
[1757082004798,1.5247,4363.1,4362.3,3.2078]
[1757082004999,1.5247,4363.1,4361.9,6.12330097]
[1757082005310,1.89464924,4362.3,4361.3,2.91550097]
[1757082005510,1.5247,4362.9,4362.2,3.2078]
[1757082005805,1.5247,4362.9,4361.8,2.91550097]
[1757082006011,1.5247,4362.9,4361.1,3.2078]
[1757082006216,1.5247,4363.7,4362.8,3.2078]
[1757082006399,1.5247,4363.7,4361.5,1.4834]
[1757082006400,3.2078,4363.1,4361.8,3.37162324]
[1757082006710,1.5247,4361.8,4360.1,3.5468]
[1757082006906,0.5857,4362.0,4360.1,0.339]
[1757082007104,5.0715,4362.6,4360.3,6.15827254]
[1757082007305,2.1104,4362.0,4361.2,3.2078]
[1757082007506,3.2078,4361.3,4360.3,3.2078]
[1757082007807,3.2078,4360.7,4360.1,0.339]
[1757082008113,3.2078,4361.3,4360.2,3.03711489]
[1757082008415,0.5857,4362.0,4361.1,3.2078]
[1757082008602,3.2078,4362.2,4361.5,3.2078]
[1757082008909,3.2078,4361.6,4361.2,3.03711489]
[1757082009108,1.5247,4361.5,4360.4,47.31873193]
[1757082009408,1.5247,4361.5,4360.5,2.97193193]
[1757082009609,3.2078,4361.3,4360.6,3.2078]
[1757082009814,1.5247,4361.4,4359.8,0.41279]
[1757082010011,3.2078,4360.9,4359.9,41.139]
[1757082010211,3.2078,4361.5,4361.4,0.41264]
[1757082010409,1.5247,4362.1,4361.2,0.339]
[1757082010603,0.5857,4362.4,4360.4,0.41273]
[1757082010604,1.5247,4361.2,4360.4,0.41273]
[1757082010809,3.2078,4361.9,4360.5,3.37752896]
[1757082011113,3.2078,4361.0,4360.6,0.338]
[1757082011310,3.2078,4361.0,4359.0,10.32167]
[1757082011311,1.5247,4360.9,4359.1,0.338]
[1757082011515,3.2078,4360.5,4359.0,1.4834]
[1757082011712,3.2078,4360.5,4359.9,0.41277]
[1757082012015,1.5247,4360.9,4359.8,0.338]
[1757082012212,1.5247,4360.1,4359.3,40.8]
[1757082012416,3.2078,4360.2,4359.4,0.338]
[1757082012615,3.2078,4360.4,4359.8,0.41278]
[1757082012909,1.5247,4359.8,4359.3,40.8]
[1757082013113,1.5247,4359.6,4358.2,1.4834]
[1757082013309,3.2078,4359.7,4359.5,0.41281]
[1757082013512,1.5247,4359.6,4359.3,0.337]
[1757082013817,3.2078,4359.7,4359.0,0.337]